[Event "Titled Tuesday Blitz August 16 Early 2022"]
[White "Zanette, Edgard Vinicius"]
[Black "Korsunsky, Yuri"]
[WhiteFideId "2109263"]
[BlackFideId "14102722"]
[WhiteElo "2182"]
[BlackElo "2394"]
[Result "1-0"]
[Round "03"]
[TimeControl "180+2"]
[Date "2022.08.18"]
[WhiteClock "0:00:00"]
[BlackClock "0:00:00"]

1. e4 {[%clk 0:00:00]}  d6 {[%clk 0:00:00]} 2. d4 {[%clk 0:00:00]}  Nf6 {[%clk 0:00:00]} 3. Nc3 {[%clk 0:00:00]}  g6 {[%clk 0:00:00]} 4. f3 {[%clk 0:00:00]}  a6 {[%clk 0:00:00]} 5. Be3 {[%clk 0:00:00]}  b5 {[%clk 0:00:00]} 6. a3 {[%clk 0:00:00]}  h5 {[%clk 0:00:00]} 7. h4 {[%clk 0:00:00]}  Bg7 {[%clk 0:00:00]} 8. Qd2 {[%clk 0:00:00]}  Bb7 {[%clk 0:00:00]} 9. Nh3 {[%clk 0:00:00]}  Nbd7 {[%clk 0:00:00]} 10. Nf2 {[%clk 0:00:00]}  c5 {[%clk 0:00:00]} 11. dxc5 {[%clk 0:00:00]}  dxc5 {[%clk 0:00:00]} 12. Rd1 {[%clk 0:00:00]}  Qc7 {[%clk 0:00:00]} 13. Bf4 {[%clk 0:00:00]}  Ne5 {[%clk 0:00:00]} 14. Nd3 {[%clk 0:00:00]}  Nxd3+ {[%clk 0:00:00]} 15. Bxd3 {[%clk 0:00:00]}  Qb6 {[%clk 0:00:00]} 16. Qf2 {[%clk 0:00:00]}  O-O {[%clk 0:00:00]} 17. O-O {[%clk 0:00:00]}  Rac8 {[%clk 0:00:00]} 18. e5 {[%clk 0:00:00]}  Nd5 {[%clk 0:00:00]} 19. Nxd5 {[%clk 0:00:00]}  Bxd5 {[%clk 0:00:00]} 20. Bg3 {[%clk 0:00:00]}  Rfd8 {[%clk 0:00:00]} 21. Rfe1 {[%clk 0:00:00]}  Qc6 {[%clk 0:00:00]} 22. f4 {[%clk 0:00:00]}  e6 {[%clk 0:00:00]} 23. Bf1 {[%clk 0:00:00]}  Bf8 {[%clk 0:00:00]} 24. Kh2 {[%clk 0:00:00]}  c4 {[%clk 0:00:00]} 25. c3 {[%clk 0:00:00]}  Bc5 {[%clk 0:00:00]} 26. Qc2 {[%clk 0:00:00]}  Qb6 {[%clk 0:00:00]} 27. Be2 {[%clk 0:00:00]}  Kg7 {[%clk 0:00:00]} 28. Rf1 {[%clk 0:00:00]}  Qb7 {[%clk 0:00:00]} 29. Bf3 {[%clk 0:00:00]}  Bxf3 {[%clk 0:00:00]} 30. Rxf3 {[%clk 0:00:00]}  Bb6 {[%clk 0:00:00]} 31. Rff1 {[%clk 0:00:00]}  a5 {[%clk 0:00:00]} 32. Rd6 {[%clk 0:00:00]}  Rxd6 {[%clk 0:00:00]} 33. exd6 {[%clk 0:00:00]}  Rd8 {[%clk 0:00:00]} 34. f5 {[%clk 0:00:00]}  exf5 {[%clk 0:00:00]} 35. Re1 {[%clk 0:00:00]}  Qd5 {[%clk 0:00:00]} 36. Re7 {[%clk 0:00:00]}  Qd3 {[%clk 0:00:00]} 37. Be5+ {[%clk 0:00:00]}  Kg8 {[%clk 0:00:00]} 38. Qc1 {[%clk 0:00:00]}  Be3 {[%clk 0:00:00]} 39. Qe1 {[%clk 0:00:00]}  f4 {[%clk 0:00:00]} 40. d7 {[%clk 0:00:00]}  Qf5 {[%clk 0:00:00]} 41. Re8+ {[%clk 0:00:00]}  Kh7 {[%clk 0:00:00]} 42. Rxd8 {[%clk 0:00:00]}  Qxe5 {[%clk 0:00:00]} 43. Kh1 {[%clk 0:00:00]}  Qd5 {[%clk 0:00:00]} 44. Qe2 {[%clk 0:00:00]}  Kg7 {[%clk 0:00:00]} 45. a4 {[%clk 0:00:00]}  Bb6 {[%clk 0:00:00]} 46. Rb8 {[%clk 0:00:00]}  Qxd7 {[%clk 0:00:00]} 47. Rxb6 {[%clk 0:00:00]}  Qc7 {[%clk 0:00:00]} 48. Rxb5 {[%clk 0:00:00]}  Qe7 {[%clk 0:00:00]} 49. Qe5+ {[%clk 0:00:00]}  Qxe5 {[%clk 0:00:00]} 50. Rxe5 {[%clk 0:00:00]} 1-0


[Site "https://www.chess.com"]

[Event "Titled Tuesday Blitz August 16 Early 2022"]
[White "Zhurbinsky, David"]
[Black "Wagner, Dennis"]
[WhiteFideId "2072904"]
[BlackFideId "24650684"]
[WhiteElo "2536"]
[BlackElo "2355"]
[Result "1/2-1/2"]
[Round "03"]
[TimeControl "180+1"]
[Date "2022.08.16"]
[WhiteClock "0:00:16"]
[BlackClock "0:00:25"]

1. e4 {[%clk 0:02:59]}  e5 {[%clk 0:02:59]} 2. Nf3 {[%clk 0:03:00]}  Nc6 {[%clk 0:02:57]} 3. Bb5 {[%clk 0:03:01]}  a6 {[%clk 0:02:55]} 4. Ba4 {[%clk 0:03:01]}  d6 {[%clk 0:02:56]} 5. O-O {[%clk 0:03:01]}  Bd7 {[%clk 0:02:56]} 6. c3 {[%clk 0:03:01]}  g6 {[%clk 0:02:55]} 7. d4 {[%clk 0:03:00]}  Bg7 {[%clk 0:02:56]} 8. Bg5 {[%clk 0:02:53]}  Nf6 {[%clk 0:02:55]} 9. Nbd2 {[%clk 0:02:46]}  h6 {[%clk 0:02:53]} 10. Bh4 {[%clk 0:02:43]}  O-O {[%clk 0:02:52]} 11. Bxc6 {[%clk 0:02:32]}  Bxc6 {[%clk 0:02:23]} 12. dxe5 {[%clk 0:02:32]}  dxe5 {[%clk 0:02:23]} 13. Nxe5 {[%clk 0:02:32]}  Bxe4 {[%clk 0:01:55]} 14. Nxe4 {[%clk 0:02:25]}  Qxd1 {[%clk 0:01:54]} 15. Nxf6+ {[%clk 0:02:04]}  Bxf6 {[%clk 0:01:53]} 16. Raxd1 {[%clk 0:02:02]}  Bxh4 {[%clk 0:01:43]} 17. Rd7 {[%clk 0:02:00]}  Rae8 {[%clk 0:01:30]} 18. Nf3 {[%clk 0:01:52]}  Re7 {[%clk 0:01:29]} 19. Rfd1 {[%clk 0:01:51]}  Rxd7 {[%clk 0:01:27]} 20. Rxd7 {[%clk 0:01:51]}  Rd8 {[%clk 0:01:27]} 21. Rxd8+ {[%clk 0:01:42]}  Bxd8 {[%clk 0:01:28]} 22. Kf1 {[%clk 0:01:42]}  f5 {[%clk 0:01:28]} 23. Ke2 {[%clk 0:01:36]}  Bf6 {[%clk 0:01:27]} 24. Kd3 {[%clk 0:01:35]}  Kf7 {[%clk 0:01:27]} 25. Nd4 {[%clk 0:01:30]}  b5 {[%clk 0:01:02]} 26. Nc6 {[%clk 0:01:12]}  Ke6 {[%clk 0:00:55]} 27. Nb4 {[%clk 0:01:00]}  a5 {[%clk 0:00:51]} 28. Nc6 {[%clk 0:01:00]}  a4 {[%clk 0:00:52]} 29. Nd4+ {[%clk 0:00:43]}  Bxd4 {[%clk 0:00:48]} 30. Kxd4 {[%clk 0:00:44]}  Kd6 {[%clk 0:00:49]} 31. b4 {[%clk 0:00:41]}  axb3 {[%clk 0:00:47]} 32. axb3 {[%clk 0:00:41]}  c5+ {[%clk 0:00:47]} 33. Kd3 {[%clk 0:00:41]}  Ke5 {[%clk 0:00:46]} 34. c4 {[%clk 0:00:33]}  b4 {[%clk 0:00:44]} 35. g3 {[%clk 0:00:24]}  f4 {[%clk 0:00:30]} 36. g4 {[%clk 0:00:16]}  h5 {[%clk 0:00:25]} 37. gxh5 {[%clk 0:00:14]}  gxh5 {[%clk 0:00:26]} 38. h4 {[%clk 0:00:14]}  Kf5 {[%clk 0:00:23]} 39. f3 {[%clk 0:00:15]}  Ke5 {[%clk 0:00:23]} 40. Ke2 {[%clk 0:00:14]}  Kd4 {[%clk 0:00:24]} 41. Kd2 {[%clk 0:00:14]}  Ke5 {[%clk 0:00:24]} 42. Kd3 {[%clk 0:00:15]}  Kf5 {[%clk 0:00:24]} 43. Ke2 {[%clk 0:00:14]}  Kf6 {[%clk 0:00:24]} 44. Kd3 {[%clk 0:00:14]}  Ke5 {[%clk 0:00:24]} 45. Ke2 {[%clk 0:00:14]}  Kd4 {[%clk 0:00:25]} 46. Kd2 {[%clk 0:00:15]}  Ke5 {[%clk 0:00:25]} 47. Kd3 {[%clk 0:00:15]}  Kf5 {[%clk 0:00:25]} 48. Ke2 {[%clk 0:00:16]}  Ke5 {[%clk 0:00:25]} 49. Kd3 {[%clk 0:00:16]} 1/2-1/2


[Site "https://www.chess.com"]

[Event "Titled Tuesday Blitz August 16 Early 2022"]
[White "Zia, Tahsin Tajwar"]
[Black "Beerdsen, Thomas"]
[WhiteFideId "10211888"]
[BlackFideId "1030108"]
[WhiteElo "1800"]
[BlackElo "2567"]
[Result "0-1"]
[Round "03"]
[TimeControl "180+1"]
[Date "2022.08.16"]
[WhiteClock "0:00:14"]
[BlackClock "0:01:30"]

1. d4 {[%clk 0:03:00]}  d5 {[%clk 0:02:58]} 2. c4 {[%clk 0:03:00]}  Nc6 {[%clk 0:02:59]} 3. Nf3 {[%clk 0:02:56]}  Bg4 {[%clk 0:02:59]} 4. cxd5 {[%clk 0:02:56]}  Bxf3 {[%clk 0:02:59]} 5. gxf3 {[%clk 0:02:57]}  Qxd5 {[%clk 0:03:00]} 6. e3 {[%clk 0:02:56]}  e5 {[%clk 0:03:00]} 7. Nc3 {[%clk 0:02:54]}  Bb4 {[%clk 0:03:01]} 8. Bd2 {[%clk 0:02:54]}  Bxc3 {[%clk 0:03:01]} 9. bxc3 {[%clk 0:02:55]}  Qd7 {[%clk 0:03:00]} 10. Rb1 {[%clk 0:02:50]}  O-O-O {[%clk 0:03:00]} 11. Qb3 {[%clk 0:02:35]}  b6 {[%clk 0:03:00]} 12. Ba6+ {[%clk 0:02:25]}  Kb8 {[%clk 0:03:00]} 13. Bb5 {[%clk 0:02:21]}  Nge7 {[%clk 0:02:52]} 14. Qa4 {[%clk 0:02:05]}  exd4 {[%clk 0:02:42]} 15. cxd4 {[%clk 0:02:00]}  Qf5 {[%clk 0:02:42]} 16. Ke2 {[%clk 0:01:43]}  Qe6 {[%clk 0:02:36]} 17. Bc3 {[%clk 0:01:32]}  Nd5 {[%clk 0:02:24]} 18. Bd2 {[%clk 0:01:14]}  Nxe3 {[%clk 0:01:55]} 19. fxe3 {[%clk 0:01:01]}  Nxd4+ {[%clk 0:01:55]} 20. Kf2 {[%clk 0:01:01]}  Nxb5 {[%clk 0:01:55]} 21. Rhd1 {[%clk 0:00:54]}  Rxd2+ {[%clk 0:01:40]} 22. Rxd2 {[%clk 0:00:53]}  Nc3 {[%clk 0:01:40]} 23. Qb3 {[%clk 0:00:40]}  Nxb1 {[%clk 0:01:41]} 24. Qxb1 {[%clk 0:00:41]}  Re8 {[%clk 0:01:40]} 25. e4 {[%clk 0:00:37]}  Qh6 {[%clk 0:01:39]} 26. Qd1 {[%clk 0:00:31]}  Qxh2+ {[%clk 0:01:39]} 27. Ke3 {[%clk 0:00:31]}  Qh6+ {[%clk 0:01:38]} 28. Kf2 {[%clk 0:00:32]}  Qh4+ {[%clk 0:01:37]} 29. Ke3 {[%clk 0:00:31]}  f5 {[%clk 0:01:36]} 30. Qa4 {[%clk 0:00:29]}  Qg5+ {[%clk 0:01:28]} 31. Ke2 {[%clk 0:00:26]}  Qh5 {[%clk 0:01:29]} 32. Rd4 {[%clk 0:00:15]}  fxe4 {[%clk 0:01:28]} 33. Rxe4 {[%clk 0:00:16]}  Rxe4+ {[%clk 0:01:28]} 34. Qxe4 {[%clk 0:00:17]}  a5 {[%clk 0:01:25]} 35. Qc6 {[%clk 0:00:14]}  Qe5+ {[%clk 0:01:25]} 36. Kf1 {[%clk 0:00:13]}  h5 {[%clk 0:01:24]} 37. a4 {[%clk 0:00:11]}  h4 {[%clk 0:01:24]} 38. Kg2 {[%clk 0:00:11]}  Qg3+ {[%clk 0:01:24]} 39. Kh1 {[%clk 0:00:11]}  h3 {[%clk 0:01:25]} 40. Qe8+ {[%clk 0:00:11]}  Ka7 {[%clk 0:01:25]} 41. Qe2 {[%clk 0:00:10]}  Qg2+ {[%clk 0:01:26]} 42. Qxg2 {[%clk 0:00:10]}  hxg2+ {[%clk 0:01:27]} 43. Kxg2 {[%clk 0:00:11]}  b5 {[%clk 0:01:28]} 44. axb5 {[%clk 0:00:11]}  a4 {[%clk 0:01:29]} 45. Kf2 {[%clk 0:00:12]}  a3 {[%clk 0:01:29]} 46. Ke2 {[%clk 0:00:13]}  a2 {[%clk 0:01:30]} 47. Kd2 {[%clk 0:00:14]} 0-1


[Site "https://www.chess.com"]

[Event "Titled Tuesday Blitz August 16 Early 2022"]
[White "Al-Tarboush, Ward"]
[Black "Petrova, Irina"]
[WhiteFideId "7601450"]
[BlackFideId "14124122"]
[WhiteElo "2234"]
[BlackElo "2021"]
[Result "0-1"]
[Round "04"]
[TimeControl "180+2"]
[Date "2022.08.18"]
[WhiteClock "0:00:00"]
[BlackClock "0:00:00"]

1. e4 {[%clk 0:00:00]}  d6 {[%clk 0:00:00]} 2. d4 {[%clk 0:00:00]}  Nf6 {[%clk 0:00:00]} 3. Nc3 {[%clk 0:00:00]}  e5 {[%clk 0:00:00]} 4. Nf3 {[%clk 0:00:00]}  Nbd7 {[%clk 0:00:00]} 5. Bc4 {[%clk 0:00:00]}  Be7 {[%clk 0:00:00]} 6. O-O {[%clk 0:00:00]}  O-O {[%clk 0:00:00]} 7. Re1 {[%clk 0:00:00]}  c6 {[%clk 0:00:00]} 8. a4 {[%clk 0:00:00]}  exd4 {[%clk 0:00:00]} 9. Qxd4 {[%clk 0:00:00]}  Ne5 {[%clk 0:00:00]} 10. Nxe5 {[%clk 0:00:00]}  dxe5 {[%clk 0:00:00]} 11. Qxe5 {[%clk 0:00:00]}  Ng4 {[%clk 0:00:00]} 12. Qh5 {[%clk 0:00:00]}  Qd4 {[%clk 0:00:00]} 13. Bxf7+ {[%clk 0:00:00]}  Rxf7 {[%clk 0:00:00]} 14. Be3 {[%clk 0:00:00]}  Nxe3 {[%clk 0:00:00]} 15. fxe3 {[%clk 0:00:00]}  Qf6 {[%clk 0:00:00]} 16. Rf1 {[%clk 0:00:00]}  Qg6 {[%clk 0:00:00]} 17. Qe5 {[%clk 0:00:00]}  Rxf1+ {[%clk 0:00:00]} 18. Rxf1 {[%clk 0:00:00]}  Be6 {[%clk 0:00:00]} 19. Nd5 {[%clk 0:00:00]}  cxd5 {[%clk 0:00:00]} 20. exd5 {[%clk 0:00:00]}  Rf8 {[%clk 0:00:00]} 21. Rxf8+ {[%clk 0:00:00]}  Bxf8 {[%clk 0:00:00]} 22. dxe6 {[%clk 0:00:00]}  Qf6 {[%clk 0:00:00]} 23. Qd5 {[%clk 0:00:00]}  Qe7 {[%clk 0:00:00]} 24. c4 {[%clk 0:00:00]}  Kh8 {[%clk 0:00:00]} 25. h3 {[%clk 0:00:00]}  h6 {[%clk 0:00:00]} 26. Kf1 {[%clk 0:00:00]}  Qb4 {[%clk 0:00:00]} 27. Qe4 {[%clk 0:00:00]}  Qxb2 {[%clk 0:00:00]} 28. Qf5 {[%clk 0:00:00]}  Qf6 {[%clk 0:00:00]} 29. e4 {[%clk 0:00:00]}  Qxf5+ {[%clk 0:00:00]} 30. exf5 {[%clk 0:00:00]}  Bc5 {[%clk 0:00:00]} 31. Ke2 {[%clk 0:00:00]}  Kg8 {[%clk 0:00:00]} 32. Kf3 {[%clk 0:00:00]}  Kf8 {[%clk 0:00:00]} 33. Ke4 {[%clk 0:00:00]}  Ke7 {[%clk 0:00:00]} 34. Kd5 {[%clk 0:00:00]}  Bf2 {[%clk 0:00:00]} 35. g4 {[%clk 0:00:00]}  a5 {[%clk 0:00:00]} 36. c5 {[%clk 0:00:00]}  Be3 {[%clk 0:00:00]} 37. c6 {[%clk 0:00:00]}  bxc6+ {[%clk 0:00:00]} 38. Kxc6 {[%clk 0:00:00]}  Bd2 {[%clk 0:00:00]} 39. Kb5 {[%clk 0:00:00]}  g6 {[%clk 0:00:00]} 40. Kb6 {[%clk 0:00:00]}  gxf5 {[%clk 0:00:00]} 41. gxf5 {[%clk 0:00:00]}  Bb4 {[%clk 0:00:00]} 42. Kc6 {[%clk 0:00:00]}  Bc3 {[%clk 0:00:00]} 43. h4 {[%clk 0:00:00]}  h5 {[%clk 0:00:00]} 44. Kb5 {[%clk 0:00:00]}  Bb4 {[%clk 0:00:00]} 45. Kb6 {[%clk 0:00:00]}  Kf6 {[%clk 0:00:00]} 46. Kb5 {[%clk 0:00:00]}  Kxf5 {[%clk 0:00:00]} 47. e7 {[%clk 0:00:00]}  Bxe7 {[%clk 0:00:00]} 48. Kxa5 {[%clk 0:00:00]}  Bxh4 {[%clk 0:00:00]} 0-1


[Site "https://www.chess.com"]

[Event "Titled Tuesday Blitz August 16 Early 2022"]
[White "Araujo Sanchez, Josue"]
[Black "Yuan, Qingyu"]
[WhiteFideId "6416896"]
[BlackFideId "8609772"]
[WhiteElo "2374"]
[BlackElo "2359"]
[Result "0-1"]
[Round "04"]
[TimeControl "180+2"]
[Date "2022.08.18"]
[WhiteClock "0:00:00"]
[BlackClock "0:00:00"]

1. e4 {[%clk 0:00:00]}  c6 {[%clk 0:00:00]} 2. d4 {[%clk 0:00:00]}  d5 {[%clk 0:00:00]} 3. e5 {[%clk 0:00:00]}  c5 {[%clk 0:00:00]} 4. dxc5 {[%clk 0:00:00]}  e6 {[%clk 0:00:00]} 5. Qg4 {[%clk 0:00:00]}  h5 {[%clk 0:00:00]} 6. Qf4 {[%clk 0:00:00]}  Bxc5 {[%clk 0:00:00]} 7. Nf3 {[%clk 0:00:00]}  Nc6 {[%clk 0:00:00]} 8. Bd3 {[%clk 0:00:00]}  Qc7 {[%clk 0:00:00]} 9. O-O {[%clk 0:00:00]}  f6 {[%clk 0:00:00]} 10. Bg6+ {[%clk 0:00:00]}  Kf8 {[%clk 0:00:00]} 11. Re1 {[%clk 0:00:00]}  Nge7 {[%clk 0:00:00]} 12. Bd3 {[%clk 0:00:00]}  Nxe5 {[%clk 0:00:00]} 13. Nxe5 {[%clk 0:00:00]}  Bd6 {[%clk 0:00:00]} 14. Nc3 {[%clk 0:00:00]}  Bxe5 {[%clk 0:00:00]} 15. Qf3 {[%clk 0:00:00]}  Bxh2+ {[%clk 0:00:00]} 16. Kh1 {[%clk 0:00:00]}  Be5 {[%clk 0:00:00]} 17. Nb5 {[%clk 0:00:00]}  Qb6 {[%clk 0:00:00]} 18. Rxe5 {[%clk 0:00:00]}  Bd7 {[%clk 0:00:00]} 19. Be3 {[%clk 0:00:00]}  Qa5 {[%clk 0:00:00]} 20. Nd4 {[%clk 0:00:00]}  Kf7 {[%clk 0:00:00]} 21. Rxh5 {[%clk 0:00:00]}  e5 {[%clk 0:00:00]} 22. Nb3 {[%clk 0:00:00]}  Qc7 {[%clk 0:00:00]} 23. Rxh8 {[%clk 0:00:00]}  Rxh8+ {[%clk 0:00:00]} 24. Kg1 {[%clk 0:00:00]}  e4 {[%clk 0:00:00]} 25. Bxe4 {[%clk 0:00:00]}  Qh2+ {[%clk 0:00:00]} 26. Kf1 {[%clk 0:00:00]}  dxe4 {[%clk 0:00:00]} 27. Qxe4 {[%clk 0:00:00]}  Bc6 {[%clk 0:00:00]} 28. Qc4+ {[%clk 0:00:00]}  Bd5 {[%clk 0:00:00]} 29. Qg4 {[%clk 0:00:00]}  Rh4 {[%clk 0:00:00]} 30. Qg3 {[%clk 0:00:00]}  Bc4+ {[%clk 0:00:00]} 31. Ke1 {[%clk 0:00:00]}  Bxb3 {[%clk 0:00:00]} 32. Kd2 {[%clk 0:00:00]}  Be6 {[%clk 0:00:00]} 33. Qxh2 {[%clk 0:00:00]}  Rxh2 {[%clk 0:00:00]} 34. g3 {[%clk 0:00:00]}  a6 {[%clk 0:00:00]} 35. b3 {[%clk 0:00:00]}  Nd5 {[%clk 0:00:00]} 36. Bd4 {[%clk 0:00:00]}  Nb4 {[%clk 0:00:00]} 37. c4 {[%clk 0:00:00]}  Nc6 {[%clk 0:00:00]} 38. Bb6 {[%clk 0:00:00]}  Ne5 {[%clk 0:00:00]} 39. Re1 {[%clk 0:00:00]}  Nf3+ {[%clk 0:00:00]} 0-1


[Site "https://www.chess.com"]

[Event "Titled Tuesday Blitz August 16 Early 2022"]
[White "Ardila, Oscar Humberto"]
[Black "Skliarov, Viktor"]
[WhiteFideId "4404742"]
[BlackFideId "14106736"]
[WhiteElo "1939"]
[BlackElo "2257"]
[Result "0-1"]
[Round "04"]
[TimeControl "180+2"]
[Date "2022.08.18"]
[WhiteClock "0:00:00"]
[BlackClock "0:00:00"]

1. d4 {[%clk 0:00:00]}  Nf6 {[%clk 0:00:00]} 2. c4 {[%clk 0:00:00]}  e6 {[%clk 0:00:00]} 3. Nc3 {[%clk 0:00:00]}  Bb4 {[%clk 0:00:00]} 4. Bd2 {[%clk 0:00:00]}  b6 {[%clk 0:00:00]} 5. Nf3 {[%clk 0:00:00]}  Bb7 {[%clk 0:00:00]} 6. e3 {[%clk 0:00:00]}  O-O {[%clk 0:00:00]} 7. Be2 {[%clk 0:00:00]}  Bxc3 {[%clk 0:00:00]} 8. Bxc3 {[%clk 0:00:00]}  Ne4 {[%clk 0:00:00]} 9. Rc1 {[%clk 0:00:00]}  f5 {[%clk 0:00:00]} 10. O-O {[%clk 0:00:00]}  Nxc3 {[%clk 0:00:00]} 11. Rxc3 {[%clk 0:00:00]}  d6 {[%clk 0:00:00]} 12. b4 {[%clk 0:00:00]}  a5 {[%clk 0:00:00]} 13. a3 {[%clk 0:00:00]}  axb4 {[%clk 0:00:00]} 14. axb4 {[%clk 0:00:00]}  Nd7 {[%clk 0:00:00]} 15. Qb3 {[%clk 0:00:00]}  Nf6 {[%clk 0:00:00]} 16. c5 {[%clk 0:00:00]}  Bd5 {[%clk 0:00:00]} 17. Bc4 {[%clk 0:00:00]}  b5 {[%clk 0:00:00]} 18. Bxd5 {[%clk 0:00:00]}  Nxd5 {[%clk 0:00:00]} 19. Rcc1 {[%clk 0:00:00]}  Ra4 {[%clk 0:00:00]} 20. Rb1 {[%clk 0:00:00]}  Rxb4 {[%clk 0:00:00]} 21. Qd3 {[%clk 0:00:00]}  Rxb1 {[%clk 0:00:00]} 22. Rxb1 {[%clk 0:00:00]}  b4 {[%clk 0:00:00]} 23. Qc4 {[%clk 0:00:00]}  Qa8 {[%clk 0:00:00]} 24. Ng5 {[%clk 0:00:00]}  Re8 {[%clk 0:00:00]} 25. cxd6 {[%clk 0:00:00]}  cxd6 {[%clk 0:00:00]} 26. h4 {[%clk 0:00:00]}  h6 {[%clk 0:00:00]} 27. Nf3 {[%clk 0:00:00]}  Rc8 {[%clk 0:00:00]} 28. Qd3 {[%clk 0:00:00]}  Rc3 {[%clk 0:00:00]} 29. Qb5 {[%clk 0:00:00]}  Qc6 {[%clk 0:00:00]} 30. Qb8+ {[%clk 0:00:00]}  Kh7 {[%clk 0:00:00]} 31. h5 {[%clk 0:00:00]}  Rc1+ {[%clk 0:00:00]} 32. Rxc1 {[%clk 0:00:00]}  Qxc1+ {[%clk 0:00:00]} 33. Kh2 {[%clk 0:00:00]}  Qc7 {[%clk 0:00:00]} 34. Qe8 {[%clk 0:00:00]}  Qe7 {[%clk 0:00:00]} 35. Qb8 {[%clk 0:00:00]}  Qf7 {[%clk 0:00:00]} 36. Qxd6 {[%clk 0:00:00]}  Qxh5+ {[%clk 0:00:00]} 37. Kg1 {[%clk 0:00:00]}  Qe8 {[%clk 0:00:00]} 38. Ne5 {[%clk 0:00:00]}  b3 {[%clk 0:00:00]} 39. Qa6 {[%clk 0:00:00]}  Qe7 {[%clk 0:00:00]} 40. Qb5 {[%clk 0:00:00]}  Qb4 {[%clk 0:00:00]} 41. Qe8 {[%clk 0:00:00]}  Qe7 {[%clk 0:00:00]} 42. Qb5 {[%clk 0:00:00]}  Nb4 {[%clk 0:00:00]} 43. Qc4 {[%clk 0:00:00]}  b2 {[%clk 0:00:00]} 44. Qb3 {[%clk 0:00:00]}  Qc7 {[%clk 0:00:00]} 45. Qxb2 {[%clk 0:00:00]}  Nd5 {[%clk 0:00:00]} 46. Qb5 {[%clk 0:00:00]}  Qe7 {[%clk 0:00:00]} 47. Qc6 {[%clk 0:00:00]}  Nf6 {[%clk 0:00:00]} 48. Qc8 {[%clk 0:00:00]}  g5 {[%clk 0:00:00]} 49. Nc6 {[%clk 0:00:00]}  Qf7 {[%clk 0:00:00]} 50. Nd8 {[%clk 0:00:00]}  Qd7 {[%clk 0:00:00]} 51. Qxd7+ {[%clk 0:00:00]}  Nxd7 {[%clk 0:00:00]} 52. Nxe6 {[%clk 0:00:00]}  Kg6 {[%clk 0:00:00]} 53. Kf1 {[%clk 0:00:00]}  Kf6 {[%clk 0:00:00]} 54. Nc7 {[%clk 0:00:00]}  Ke7 {[%clk 0:00:00]} 55. Ke2 {[%clk 0:00:00]}  Kd6 {[%clk 0:00:00]} 56. Nb5+ {[%clk 0:00:00]}  Kd5 {[%clk 0:00:00]} 57. Kd3 {[%clk 0:00:00]}  Nf6 {[%clk 0:00:00]} 58. Nc3+ {[%clk 0:00:00]}  Ke6 {[%clk 0:00:00]} 59. f3 {[%clk 0:00:00]}  h5 {[%clk 0:00:00]} 60. e4 {[%clk 0:00:00]}  f4 {[%clk 0:00:00]} 61. Ne2 {[%clk 0:00:00]}  Ne8 {[%clk 0:00:00]} 62. Kc4 {[%clk 0:00:00]}  Nd6+ {[%clk 0:00:00]} 63. Kc5 {[%clk 0:00:00]}  Nb7+ {[%clk 0:00:00]} 64. Kb6 {[%clk 0:00:00]}  Nd8 {[%clk 0:00:00]} 65. Kc5 {[%clk 0:00:00]}  Nb7+ {[%clk 0:00:00]} 66. Kc6 {[%clk 0:00:00]}  Nd8+ {[%clk 0:00:00]} 67. Kc7 {[%clk 0:00:00]}  Nf7 {[%clk 0:00:00]} 68. d5+ {[%clk 0:00:00]}  Ke5 {[%clk 0:00:00]} 69. Nc1 {[%clk 0:00:00]}  g4 {[%clk 0:00:00]} 70. Nd3+ {[%clk 0:00:00]}  Kd4 {[%clk 0:00:00]} 71. Nxf4 {[%clk 0:00:00]}  gxf3 {[%clk 0:00:00]} 72. gxf3 {[%clk 0:00:00]}  h4 {[%clk 0:00:00]} 73. d6 {[%clk 0:00:00]}  Ke5 {[%clk 0:00:00]} 74. Nd3+ {[%clk 0:00:00]}  Ke6 {[%clk 0:00:00]} 75. Nc5+ {[%clk 0:00:00]}  Kf6 {[%clk 0:00:00]} 76. d7 {[%clk 0:00:00]}  h3 {[%clk 0:00:00]} 0-1


[Site "https://www.chess.com"]

[Event "Titled Tuesday Blitz August 16 Early 2022"]
[White "Atanasov, Anthony"]
[Black "Santos Ruiz, Miguel"]
[WhiteFideId "2623897"]
[BlackFideId "22291482"]
[WhiteElo "1928"]
[BlackElo "2478"]
[Result "1-0"]
[Round "04"]
[TimeControl "180+1"]
[Date "2022.08.16"]
[WhiteClock "0:00:05"]
[BlackClock "0:00:17"]

1. e4 {[%clk 0:03:00]}  c5 {[%clk 0:02:59]} 2. Nf3 {[%clk 0:03:01]}  Qc7 {[%clk 0:02:55]} 3. d4 {[%clk 0:02:25]}  cxd4 {[%clk 0:02:54]} 4. Qxd4 {[%clk 0:02:23]}  Nc6 {[%clk 0:02:54]} 5. Qe3 {[%clk 0:02:22]}  Nf6 {[%clk 0:02:50]} 6. c4 {[%clk 0:02:15]}  Nb4 {[%clk 0:02:30]} 7. Nd4 {[%clk 0:01:46]}  Qe5 {[%clk 0:02:19]} 8. Na3 {[%clk 0:00:48]}  e6 {[%clk 0:02:00]} 9. Bd2 {[%clk 0:00:18]}  Bc5 {[%clk 0:01:57]} 10. Bc3 {[%clk 0:00:13]}  Nxe4 {[%clk 0:01:52]} 11. f3 {[%clk 0:00:02]}  Bxd4 {[%clk 0:01:33]} 12. Bxd4 {[%clk 0:00:02]}  Qa5 {[%clk 0:01:31]} 13. Qxe4 {[%clk 0:00:02]}  f5 {[%clk 0:01:11]} 14. Qh4 {[%clk 0:00:01]}  Nc2+ {[%clk 0:01:03]} 15. Kd1 {[%clk 0:00:02]}  Nxa1 {[%clk 0:01:04]} 16. Bxg7 {[%clk 0:00:02]}  Rg8 {[%clk 0:00:59]} 17. Qh5+ {[%clk 0:00:02]}  Ke7 {[%clk 0:00:58]} 18. Qxh7 {[%clk 0:00:02]}  Qa4+ {[%clk 0:00:52]} 19. b3 {[%clk 0:00:03]}  Nxb3 {[%clk 0:00:49]} 20. axb3 {[%clk 0:00:04]}  Qxb3+ {[%clk 0:00:49]} 21. Nc2 {[%clk 0:00:05]}  Rxg7 {[%clk 0:00:40]} 22. Qxg7+ {[%clk 0:00:05]}  Kd8 {[%clk 0:00:40]} 23. Qf8+ {[%clk 0:00:05]}  Kc7 {[%clk 0:00:40]} 24. Qc5+ {[%clk 0:00:06]}  Kd8 {[%clk 0:00:41]} 25. Qf8+ {[%clk 0:00:06]}  Kc7 {[%clk 0:00:41]} 26. Qc5+ {[%clk 0:00:07]}  Kd8 {[%clk 0:00:41]} 27. h4 {[%clk 0:00:04]}  b6 {[%clk 0:00:35]} 28. Qb4 {[%clk 0:00:05]}  Qa2 {[%clk 0:00:30]} 29. Qf8+ {[%clk 0:00:05]}  Kc7 {[%clk 0:00:31]} 30. Qa3 {[%clk 0:00:06]}  Qb1+ {[%clk 0:00:30]} 31. Qc1 {[%clk 0:00:06]}  Qb3 {[%clk 0:00:30]} 32. Qe3 {[%clk 0:00:05]}  Qb1+ {[%clk 0:00:29]} 33. Qc1 {[%clk 0:00:06]}  Qb3 {[%clk 0:00:30]} 34. h5 {[%clk 0:00:06]}  Bb7 {[%clk 0:00:27]} 35. Qf4+ {[%clk 0:00:06]}  d6 {[%clk 0:00:25]} 36. Qe3 {[%clk 0:00:07]}  Qb1+ {[%clk 0:00:25]} 37. Qc1 {[%clk 0:00:07]}  Qb3 {[%clk 0:00:25]} 38. Qe3 {[%clk 0:00:08]}  Qb1+ {[%clk 0:00:25]} 39. Kd2 {[%clk 0:00:08]}  e5 {[%clk 0:00:24]} 40. h6 {[%clk 0:00:07]}  f4 {[%clk 0:00:23]} 41. Qc3 {[%clk 0:00:06]}  Rh8 {[%clk 0:00:23]} 42. h7 {[%clk 0:00:06]}  Bc6 {[%clk 0:00:22]} 43. Nb4 {[%clk 0:00:05]}  Bd7 {[%clk 0:00:20]} 44. Nd5+ {[%clk 0:00:05]}  Kb7 {[%clk 0:00:21]} 45. Qc1 {[%clk 0:00:05]}  Qg6 {[%clk 0:00:20]} 46. Qc2 {[%clk 0:00:02]}  Bf5 {[%clk 0:00:20]} 47. Qb2 {[%clk 0:00:02]}  Rxh7 {[%clk 0:00:20]} 48. Rxh7+ {[%clk 0:00:03]}  Qxh7 {[%clk 0:00:20]} 49. Qb4 {[%clk 0:00:03]}  Qd7 {[%clk 0:00:20]} 50. Qb5 {[%clk 0:00:03]}  Qc8 {[%clk 0:00:16]} 51. Ne7 {[%clk 0:00:02]}  Qe6 {[%clk 0:00:14]} 52. Nxf5 {[%clk 0:00:02]}  Qxf5 {[%clk 0:00:15]} 53. Bd3 {[%clk 0:00:03]}  Qg5 {[%clk 0:00:15]} 54. Be4+ {[%clk 0:00:03]}  Kc7 {[%clk 0:00:16]} 55. Qc6+ {[%clk 0:00:04]}  Kd8 {[%clk 0:00:17]} 56. Qxd6+ {[%clk 0:00:05]}  Ke8 {[%clk 0:00:17]} 57. Bg6+ {[%clk 0:00:05]} 1-0


[Site "https://www.chess.com"]